[Event "Live Chess"]
[Site "Chess.com"]
[Date "2023.05.21"]
[Round "-"]
[White "Ra2orLeaf"]
[Black "viktorskliarov"]
[Result "0-1"]
[WhiteElo "1146"]
[BlackElo "2646"]
[TimeControl "300"]
[EndTime "7:44:31 PDT"]
[Termination "viktorskliarov won by checkmate"]

1. d4 {[%clk 0:04:35.4]} 1... Nf6 {[%clk 0:04:55.8]} 2. Bf4 {[%clk 0:04:33.8]}
2... g6 {[%clk 0:04:51]} 3. Nf3 {[%clk 0:04:31.8]} 3... Bg7 {[%clk 0:04:50.3]}
4. e3 {[%clk 0:04:31]} 4... d6 {[%clk 0:04:49.4]} 5. Bd3 {[%clk 0:04:30]} 5...
O-O {[%clk 0:04:48.7]} 6. Nbd2 {[%clk 0:04:28.3]} 6... c5 {[%clk 0:04:47.9]} 7.
c3 {[%clk 0:04:24.2]} 7... b6 {[%clk 0:04:44.1]} 8. h4 {[%clk 0:04:23]} 8... Bg4
{[%clk 0:04:40.2]} 9. Ne4 {[%clk 0:03:54.2]} 9... Nbd7 {[%clk 0:04:37.2]} 10.
Qc2 {[%clk 0:03:23.2]} 10... Bxf3 {[%clk 0:04:17.7]} 11. gxf3 {[%clk 0:03:21.6]}
11... Nh5 {[%clk 0:04:16.6]} 12. Bg3 {[%clk 0:03:16.2]} 12... d5 {[%clk
0:03:46.7]} 13. Nd2 {[%clk 0:03:03.9]} 13... e5 {[%clk 0:03:45.9]} 14. O-O-O
{[%clk 0:02:53.8]} 14... cxd4 {[%clk 0:03:37.1]} 15. exd4 {[%clk 0:02:49.5]}
15... exd4 {[%clk 0:03:35.1]} 16. Kb1 {[%clk 0:02:42.2]} 16... dxc3 {[%clk
0:03:31.2]} 17. bxc3 {[%clk 0:02:37.9]} 17... Rc8 {[%clk 0:03:30]} 18. c4 {[%clk
0:01:56.5]} 18... Qf6 {[%clk 0:03:25.9]} 19. Bd6 {[%clk 0:01:33]} 19... Qa1#
{[%clk 0:03:22.3]} 0-1

[Event "Live Chess"]
[Site "Chess.com"]
[Date "2023.05.21"]
[Round "-"]
[White "GEMdzq"]
[Black "mach247"]
[Result "1-0"]
[WhiteElo "2227"]
[BlackElo "1331"]
[TimeControl "300"]
[EndTime "7:44:43 PDT"]
[Termination "GEMdzq won by resignation"]

1. e4 {[%clk 0:04:58.9]} 1... d5 {[%clk 0:04:59.4]} 2. exd5 {[%clk 0:04:57.9]}
2... Qxd5 {[%clk 0:04:59.3]} 3. Nc3 {[%clk 0:04:57.4]} 3... Qd8 {[%clk
0:04:58.9]} 4. d4 {[%clk 0:04:56.8]} 4... Nf6 {[%clk 0:04:58.2]} 5. Bc4 {[%clk
0:04:56.1]} 5... a6 {[%clk 0:04:54.4]} 6. h3 {[%clk 0:04:54.6]} 6... b5 {[%clk
0:04:53.5]} 7. Bb3 {[%clk 0:04:53.4]} 7... Bb7 {[%clk 0:04:52.7]} 8. Nf3 {[%clk
0:04:51.6]} 8... e6 {[%clk 0:04:51.6]} 9. O-O {[%clk 0:04:48.1]} 9... Be7 {[%clk
0:04:49]} 10. Re1 {[%clk 0:04:42.8]} 10... O-O {[%clk 0:04:47.9]} 11. Ne5 {[%clk
0:04:40.9]} 11... Nc6 {[%clk 0:04:41.7]} 12. Be3 {[%clk 0:04:34.5]} 12... Na5
{[%clk 0:04:39.6]} 13. Qe2 {[%clk 0:04:22.7]} 13... Nxb3 {[%clk 0:04:38.7]} 14.
axb3 {[%clk 0:04:22.1]} 14... Nd5 {[%clk 0:04:37.4]} 15. Nxd5 {[%clk 0:04:15.6]}
15... Bxd5 {[%clk 0:04:36.7]} 16. c4 {[%clk 0:04:13.2]} 16... bxc4 {[%clk
0:04:36.2]} 17. bxc4 {[%clk 0:04:12.8]} 17... Bb7 {[%clk 0:04:29.7]} 18. Qg4
{[%clk 0:03:56.9]} 18... Bf6 {[%clk 0:04:13.2]} 19. Red1 {[%clk 0:03:44.1]}
19... Qe7 {[%clk 0:03:54.1]} 20. Qg3 {[%clk 0:03:34.3]} 20... Bxe5 {[%clk
0:03:36.7]} 21. dxe5 {[%clk 0:03:33.1]} 21... Rfd8 {[%clk 0:03:34.6]} 22. Bg5
{[%clk 0:03:30.4]} 22... f6 {[%clk 0:03:32.3]} 23. Bxf6 {[%clk 0:03:29]} 1-0

[Event "Live Chess"]
[Site "Chess.com"]
[Date "2023.05.21"]
[Round "-"]
[White "Ian-Morley"]
[Black "PantherCal"]
[Result "0-1"]
[WhiteElo "1089"]
[BlackElo "1859"]
[TimeControl "300"]
[EndTime "7:44:56 PDT"]
[Termination "PantherCal won by resignation"]

1. e4 {[%clk 0:04:59.1]} 1... d5 {[%clk 0:04:59]} 2. Nf3 {[%clk 0:04:58.8]} 2...
dxe4 {[%clk 0:04:58.2]} 3. Ng5 {[%clk 0:04:57.3]} 3... Nf6 {[%clk 0:04:57.8]} 4.
Nc3 {[%clk 0:04:54]} 4... Bf5 {[%clk 0:04:57.7]} 5. d3 {[%clk 0:04:49]} 5...
exd3 {[%clk 0:04:56.7]} 6. cxd3 {[%clk 0:04:47.1]} 6... c6 {[%clk 0:04:55.8]} 7.
Bd2 {[%clk 0:04:44.9]} 7... Nbd7 {[%clk 0:04:54.3]} 8. f4 {[%clk 0:04:43.8]}
8... e6 {[%clk 0:04:53.3]} 9. Qe2 {[%clk 0:04:40.4]} 9... Be7 {[%clk 0:04:51.1]}
10. O-O-O {[%clk 0:04:39]} 10... Qa5 {[%clk 0:04:47.1]} 11. a3 {[%clk
0:04:37.4]} 11... O-O-O {[%clk 0:04:44.8]} 12. Nce4 {[%clk 0:04:36.8]} 12... Qc7
{[%clk 0:04:40.7]} 13. Nxf6 {[%clk 0:04:35.2]} 13... Bxf6 {[%clk 0:04:38.7]} 14.
Nxf7 {[%clk 0:04:34.3]} 14... Qb6 {[%clk 0:04:36.8]} 15. b4 {[%clk 0:04:25]}
15... Qd4 {[%clk 0:04:32.8]} 16. Ne5 {[%clk 0:04:11.3]} 16... Nxe5 {[%clk
0:04:29.4]} 17. fxe5 {[%clk 0:04:10.1]} 17... Bxe5 {[%clk 0:04:29.3]} 18. Bc3
{[%clk 0:04:00.2]} 18... Qxc3+ {[%clk 0:04:27.3]} 19. Qc2 {[%clk 0:03:59.9]}
19... Bf4+ {[%clk 0:04:22.6]} 20. Kb1 {[%clk 0:03:59]} 20... Qxa3 {[%clk
0:04:12.9]} 21. Qa2 {[%clk 0:03:57.3]} 21... Qxb4+ {[%clk 0:04:10]} 22. Qb2
{[%clk 0:03:56.2]} 22... Qxb2+ {[%clk 0:04:06.7]} 23. Kxb2 {[%clk 0:03:55.6]}
23... Bxd3 {[%clk 0:04:05.5]} 24. Bxd3 {[%clk 0:03:54.3]} 24... e5 {[%clk
0:04:02.4]} 25. Bf5+ {[%clk 0:03:51.6]} 25... Kc7 {[%clk 0:04:01.3]} 26. Rxd8
{[%clk 0:03:50.6]} 26... Rxd8 {[%clk 0:04:00]} 27. Rb1 {[%clk 0:03:41.4]} 27...
Rd2+ {[%clk 0:03:58.7]} 28. Kc3 {[%clk 0:03:38.2]} 28... Rxg2 {[%clk 0:03:57.2]}
29. Bxh7 {[%clk 0:03:37]} 29... Rxh2 {[%clk 0:03:55.8]} 30. Bg8 {[%clk
0:03:34.6]} 30... e4 {[%clk 0:03:52.4]} 31. Be6 {[%clk 0:03:33.5]} 31... e3
{[%clk 0:03:50.7]} 32. Rd1 {[%clk 0:03:33.2]} 32... Bd6 {[%clk 0:03:48.9]} 33.
Kd3 {[%clk 0:03:31]} 33... e2 {[%clk 0:03:46.5]} 34. Re1 {[%clk 0:03:30]} 34...
Bb4 {[%clk 0:03:44.7]} 35. Rxe2 {[%clk 0:03:28.7]} 35... Rxe2 {[%clk 0:03:44.6]}
36. Kxe2 {[%clk 0:03:28]} 36... Kd6 {[%clk 0:03:44.1]} 37. Bc4 {[%clk
0:03:26.1]} 37... Ke5 {[%clk 0:03:43.3]} 38. Kf3 {[%clk 0:03:25.3]} 38... g5
{[%clk 0:03:42.2]} 39. Kg4 {[%clk 0:03:24.5]} 39... Be7 {[%clk 0:03:42.1]} 0-1

[Event "Live Chess"]
[Site "Chess.com"]
[Date "2023.05.21"]
[Round "-"]
[White "WelshTiger"]
[Black "lord_cll"]
[Result "1-0"]
[WhiteElo "2339"]
[BlackElo "1209"]
[TimeControl "300"]
[EndTime "7:45:04 PDT"]
[Termination "WelshTiger won by resignation"]

1. e4 {[%clk 0:04:57.8]} 1... d5 {[%clk 0:04:57.2]} 2. exd5 {[%clk 0:04:56.5]}
2... Qxd5 {[%clk 0:04:57.1]} 3. Nc3 {[%clk 0:04:56.1]} 3... Qa5 {[%clk
0:04:55.8]} 4. d4 {[%clk 0:04:55.1]} 4... Nf6 {[%clk 0:04:55]} 5. Nf3 {[%clk
0:04:54.4]} 5... Bf5 {[%clk 0:04:52.7]} 6. Bc4 {[%clk 0:04:51.9]} 6... e6 {[%clk
0:04:51.6]} 7. Qe2 {[%clk 0:04:46.8]} 7... c6 {[%clk 0:04:44.4]} 8. Ne5 {[%clk
0:04:45.7]} 8... Qc7 {[%clk 0:04:38.8]} 9. g4 {[%clk 0:04:43.9]} 9... Bg6 {[%clk
0:04:28.2]} 10. h4 {[%clk 0:04:43.1]} 10... h5 {[%clk 0:04:24.6]} 11. Nxg6
{[%clk 0:04:42]} 11... fxg6 {[%clk 0:04:18.9]} 12. Qxe6+ {[%clk 0:04:41]} 12...
Be7 {[%clk 0:04:15.9]} 13. g5 {[%clk 0:04:32]} 13... Nd5 {[%clk 0:03:17.5]} 14.
Bxd5 {[%clk 0:04:22.4]} 14... cxd5 {[%clk 0:03:13]} 15. Nxd5 {[%clk 0:04:21.7]}
15... Qd7 {[%clk 0:03:11.6]} 16. Qxe7+ {[%clk 0:04:07]} 16... Qxe7+ {[%clk
0:03:08.9]} 17. Nxe7 {[%clk 0:04:06.9]} 17... Kxe7 {[%clk 0:03:08.6]} 18. Be3
{[%clk 0:04:00.3]} 18... Nc6 {[%clk 0:03:06.8]} 19. O-O-O {[%clk 0:03:59.4]}
19... Nb4 {[%clk 0:02:57.2]} 20. a3 {[%clk 0:03:55.6]} 20... Nd5 {[%clk
0:02:50.2]} 21. Bd2 {[%clk 0:03:54]} 21... Rhf8 {[%clk 0:02:39.4]} 22. Rhe1+
{[%clk 0:03:52.6]} 22... Kd7 {[%clk 0:02:37.4]} 23. Re5 {[%clk 0:03:51.7]} 23...
Kc6 {[%clk 0:02:32.7]} 24. c4 {[%clk 0:03:47.7]} 24... Nf4 {[%clk 0:02:22.2]}
25. Bb4 {[%clk 0:03:42.9]} 25... Rfe8 {[%clk 0:02:06.9]} 26. d5+ {[%clk
0:02:54.4]} 26... Kd7 {[%clk 0:01:56.4]} 27. Bc3 {[%clk 0:02:53.3]} 27... Ne2+
{[%clk 0:01:47.7]} 28. Kc2 {[%clk 0:02:51.4]} 28... Nxc3 {[%clk 0:01:41.1]} 29.
Rxe8 {[%clk 0:02:49.9]} 29... Rxe8 {[%clk 0:01:34.2]} 30. Kxc3 {[%clk
0:02:49.1]} 30... Re2 {[%clk 0:01:31.4]} 31. Rd2 {[%clk 0:02:48.1]} 31... Re4
{[%clk 0:01:28.8]} 32. Rd4 {[%clk 0:02:46.9]} 32... Re2 {[%clk 0:01:27.6]} 33.
Rf4 {[%clk 0:02:45.9]} 33... Ke7 {[%clk 0:01:23]} 34. c5 {[%clk 0:02:44.4]}
34... a6 {[%clk 0:01:13.8]} 35. Rb4 {[%clk 0:02:35.9]} 35... Rxf2 {[%clk
0:01:00]} 36. Rxb7+ {[%clk 0:02:34.9]} 36... Kd8 {[%clk 0:00:58.5]} 37. Rxg7
{[%clk 0:02:32.9]} 37... Rf3+ {[%clk 0:00:55.6]} 38. Kd4 {[%clk 0:02:29.6]}
38... Rf4+ {[%clk 0:00:54.4]} 39. Ke5 {[%clk 0:02:29.1]} 39... Rxh4 {[%clk
0:00:51.7]} 40. Kd6 {[%clk 0:02:27.5]} 40... Ke8 {[%clk 0:00:47.5]} 41. c6
{[%clk 0:02:24.4]} 41... Rc4 {[%clk 0:00:44.7]} 42. c7 {[%clk 0:02:23.1]} 42...
Kf8 {[%clk 0:00:39.9]} 43. Rxg6 {[%clk 0:02:14.8]} 43... h4 {[%clk 0:00:35.9]}
44. Rh6 {[%clk 0:02:14]} 1-0

[Event "Live Chess"]
[Site "Chess.com"]
[Date "2023.05.21"]
[Round "-"]
[White "davigator"]
[Black "Long1968"]
[Result "1-0"]
[WhiteElo "2286"]
[BlackElo "951"]
[TimeControl "300"]
[EndTime "7:45:26 PDT"]
[Termination "davigator won on time"]

1. e4 {[%clk 0:04:57.9]} 1... e6 {[%clk 0:04:57.6]} 2. Nf3 {[%clk 0:04:56.3]}
2... d5 {[%clk 0:04:55.6]} 3. e5 {[%clk 0:04:55.1]} 3... c5 {[%clk 0:04:50.3]}
4. d4 {[%clk 0:04:50.8]} 4... cxd4 {[%clk 0:04:46.6]} 5. Nbd2 {[%clk 0:04:45.6]}
5... Qc7 {[%clk 0:04:40.9]} 6. Nb3 {[%clk 0:04:43.5]} 6... Nc6 {[%clk
0:04:28.5]} 7. Bf4 {[%clk 0:04:41.4]} 7... Bb4+ {[%clk 0:04:16.9]} 8. Nbd2
{[%clk 0:04:40]} 8... f6 {[%clk 0:03:33.2]} 9. Bg3 {[%clk 0:04:32]} 9... Nxe5
{[%clk 0:03:16.5]} 10. Nxe5 {[%clk 0:04:29.2]} 10... fxe5 {[%clk 0:03:09.6]} 11.
Qh5+ {[%clk 0:04:26.5]} 11... Qf7 {[%clk 0:02:37.2]} 12. Qxe5 {[%clk 0:04:22.2]}
12... Qf6 {[%clk 0:02:16.2]} 13. Bb5+ {[%clk 0:04:15.2]} 13... Bd7 {[%clk
0:02:08.3]} 14. Bxd7+ {[%clk 0:04:13.5]} 14... Kxd7 {[%clk 0:02:04]} 15. Qc7+
{[%clk 0:04:13]} 15... Ke8 {[%clk 0:01:41.7]} 16. Qxb7 {[%clk 0:04:11.5]} 16...
Bxd2+ {[%clk 0:01:24.5]} 17. Kxd2 {[%clk 0:04:11.4]} 17... Rd8 {[%clk
0:00:28.3]} 18. Qxa7 {[%clk 0:04:03.4]} 18... Qh6+ {[%clk 0:00:12]} 19. Kd1
{[%clk 0:04:01.1]} 19... Qh5+ {[%clk 0:00:04.9]} 20. f3 {[%clk 0:03:59.9]} 1-0

[Event "Live Chess"]
[Site "Chess.com"]
[Date "2023.05.21"]
[Round "-"]
[White "Singapourfeuj"]
[Black "LiamClery2020"]
[Result "0-1"]
[WhiteElo "2184"]
[BlackElo "2009"]
[TimeControl "300"]
[EndTime "7:45:59 PDT"]
[Termination "LiamClery2020 won by resignation"]

1. d4 {[%clk 0:04:56.8]} 1... Nf6 {[%clk 0:04:57.9]} 2. Nf3 {[%clk 0:04:55.9]}
2... e6 {[%clk 0:04:55.1]} 3. c4 {[%clk 0:04:54.7]} 3... c5 {[%clk 0:04:52.8]}
4. d5 {[%clk 0:04:53]} 4... exd5 {[%clk 0:04:50.2]} 5. cxd5 {[%clk 0:04:52.2]}
5... d6 {[%clk 0:04:50.1]} 6. Nc3 {[%clk 0:04:50.9]} 6... a6 {[%clk 0:04:46.5]}
7. a4 {[%clk 0:04:49.1]} 7... Nbd7 {[%clk 0:04:44.9]} 8. e4 {[%clk 0:04:47.1]}
8... Ne5 {[%clk 0:04:42.8]} 9. Nd2 {[%clk 0:04:43.9]} 9... Bg4 {[%clk
0:04:40.1]} 10. f3 {[%clk 0:04:42.5]} 10... Bd7 {[%clk 0:04:38.7]} 11. Be2
{[%clk 0:04:41.2]} 11... Rb8 {[%clk 0:04:34.8]} 12. a5 {[%clk 0:04:38.6]} 12...
Be7 {[%clk 0:04:26.5]} 13. O-O {[%clk 0:04:37.2]} 13... O-O {[%clk 0:04:25.3]}
14. f4 {[%clk 0:04:36.1]} 14... Ng6 {[%clk 0:04:24.5]} 15. Nc4 {[%clk
0:04:34.6]} 15... Bb5 {[%clk 0:04:19.4]} 16. Be3 {[%clk 0:04:33.1]} 16... Re8
{[%clk 0:04:15.4]} 17. Qc2 {[%clk 0:04:23.1]} 17... Bf8 {[%clk 0:04:12.2]} 18.
Rfe1 {[%clk 0:04:07.4]} 18... Bxc4 {[%clk 0:04:02.8]} 19. Bxc4 {[%clk
0:04:05.3]} 19... Ng4 {[%clk 0:04:02.1]} 20. Bd2 {[%clk 0:04:01.8]} 20... Qh4
{[%clk 0:03:58.1]} 21. h3 {[%clk 0:04:01]} 21... Qf2+ {[%clk 0:03:31.2]} 22. Kh1
{[%clk 0:03:58.6]} 22... Nxf4 {[%clk 0:03:20.4]} 23. Bxf4 {[%clk 0:03:56.1]}
23... Qxc2 {[%clk 0:03:18.8]} 24. hxg4 {[%clk 0:03:53.9]} 24... Qxb2 {[%clk
0:03:12.7]} 25. Na4 {[%clk 0:03:51.5]} 25... Qf6 {[%clk 0:03:10.4]} 26. g3
{[%clk 0:03:48.9]} 26... g5 {[%clk 0:03:05.5]} 27. Bd2 {[%clk 0:03:39.8]} 27...
Qf3+ {[%clk 0:03:03.2]} 28. Kh2 {[%clk 0:03:34.5]} 28... Qf2+ {[%clk 0:03:02.1]}
29. Kh3 {[%clk 0:03:33.6]} 29... Qxd2 {[%clk 0:03:00.5]} 30. Nb6 {[%clk
0:03:32.5]} 30... Bg7 {[%clk 0:02:49.8]} 31. Rad1 {[%clk 0:03:28]} 31... Qxa5
{[%clk 0:02:47.4]} 32. Nd7 {[%clk 0:03:26.8]} 32... Rbd8 {[%clk 0:02:45.2]} 33.
e5 {[%clk 0:03:26]} 33... Rxd7 {[%clk 0:02:41.4]} 34. e6 {[%clk 0:03:25.2]}
34... fxe6 {[%clk 0:02:39.9]} 35. dxe6 {[%clk 0:03:23.8]} 35... Rde7 {[%clk
0:02:38.9]} 36. Rxd6 {[%clk 0:03:22.7]} 36... Qxe1 {[%clk 0:02:35.6]} 0-1

[Event "Live Chess"]
[Site "Chess.com"]
[Date "2023.05.21"]
[Round "-"]
[White "AlanPaling"]
[Black "manthanit"]
[Result "1-0"]
[WhiteElo "1399"]
[BlackElo "1100"]
[TimeControl "300"]
[EndTime "7:46:28 PDT"]
[Termination "AlanPaling won by resignation"]

1. c4 {[%clk 0:04:59]} 1... e6 {[%clk 0:04:59.9]} 2. g3 {[%clk 0:04:56.8]} 2...
d5 {[%clk 0:04:59.5]} 3. Bg2 {[%clk 0:04:56.2]} 3... dxc4 {[%clk 0:04:56.2]} 4.
Qa4+ {[%clk 0:04:54.7]} 4... Bd7 {[%clk 0:04:54.9]} 5. Qxc4 {[%clk 0:04:53.5]}
5... Nc6 {[%clk 0:04:54.1]} 6. Nf3 {[%clk 0:04:50.9]} 6... Nf6 {[%clk
0:04:52.8]} 7. O-O {[%clk 0:04:49.6]} 7... Be7 {[%clk 0:04:49.7]} 8. d4 {[%clk
0:04:48.2]} 8... O-O {[%clk 0:04:48.1]} 9. Nc3 {[%clk 0:04:44.5]} 9... h6 {[%clk
0:04:46.6]} 10. e4 {[%clk 0:04:42.6]} 10... Rb8 {[%clk 0:04:45.7]} 11. h3 {[%clk
0:04:25.6]} 11... a6 {[%clk 0:04:43.3]} 12. Be3 {[%clk 0:04:24.1]} 12... Na7
{[%clk 0:04:19.6]} 13. Rfc1 {[%clk 0:04:19.8]} 13... Bb5 {[%clk 0:04:17.9]} 14.
Nxb5 {[%clk 0:04:18.1]} 14... Nxb5 {[%clk 0:04:16.9]} 15. a4 {[%clk 0:04:13]}
15... Nd6 {[%clk 0:04:07.8]} 16. Qxc7 {[%clk 0:04:11.6]} 16... Ndxe4 {[%clk
0:04:04.9]} 17. Qxd8 {[%clk 0:04:08.2]} 17... Rfxd8 {[%clk 0:04:03.4]} 18. Rc7
{[%clk 0:04:03.6]} 18... Rd7 {[%clk 0:03:49.2]} 19. Rac1 {[%clk 0:03:47.8]}
19... Rxc7 {[%clk 0:03:36.8]} 20. Rxc7 {[%clk 0:03:45.7]} 20... Bd6 {[%clk
0:03:36]} 21. Rc2 {[%clk 0:03:39.1]} 21... Kf8 {[%clk 0:03:33.3]} 22. Ne5 {[%clk
0:03:34.3]} 22... Ke7 {[%clk 0:03:10]} 23. Nc4 {[%clk 0:03:21.4]} 23... b5
{[%clk 0:03:00.8]} 24. Nxd6 {[%clk 0:03:19]} 24... Nxd6 {[%clk 0:02:59.6]} 25.
Bf4 {[%clk 0:03:16.3]} 25... bxa4 {[%clk 0:02:54.1]} 26. Rc7+ {[%clk 0:03:06.1]}
26... Nd7 {[%clk 0:02:45.8]} 27. Rc6 {[%clk 0:03:03.8]} 27... Rxb2 {[%clk
0:01:59.3]} 28. Bxd6+ {[%clk 0:02:55.6]} 28... Kd8 {[%clk 0:01:57.8]} 29. Rxa6
{[%clk 0:02:53.3]} 29... Ra2 {[%clk 0:01:47.5]} 30. Ra8+ {[%clk 0:02:43.2]} 1-0

[Event "Live Chess"]
[Site "Chess.com"]
[Date "2023.05.21"]
[Round "-"]
[White "Biranidun"]
[Black "hturner40"]
[Result "1-0"]
[WhiteElo "2519"]
[BlackElo "1794"]
[TimeControl "300"]
[EndTime "7:46:32 PDT"]
[Termination "Biranidun won by resignation"]

1. e4 {[%clk 0:04:57.9]} 1... Nc6 {[%clk 0:04:58.3]} 2. Nf3 {[%clk 0:04:57.1]}
2... e5 {[%clk 0:04:57.1]} 3. Bc4 {[%clk 0:04:56.3]} 3... Nf6 {[%clk 0:04:54.8]}
4. Ng5 {[%clk 0:04:55.9]} 4... d5 {[%clk 0:04:52.7]} 5. exd5 {[%clk 0:04:55.8]}
5... b5 {[%clk 0:04:51.5]} 6. Bf1 {[%clk 0:04:54.5]} 6... Qxd5 {[%clk
0:04:48.2]} 7. Nc3 {[%clk 0:04:53.5]} 7... Qc5 {[%clk 0:04:46.7]} 8. Bxb5 {[%clk
0:04:53]} 8... Bd7 {[%clk 0:04:37.6]} 9. O-O {[%clk 0:04:51.5]} 9... h6 {[%clk
0:04:31.5]} 10. Nf3 {[%clk 0:04:48.7]} 10... e4 {[%clk 0:04:25.9]} 11. Re1
{[%clk 0:04:43.8]} 11... Be7 {[%clk 0:04:17.2]} 12. d4 {[%clk 0:04:42.7]} 12...
exd3 {[%clk 0:04:08.9]} 13. Qxd3 {[%clk 0:04:40]} 13... O-O {[%clk 0:03:44.4]}
14. Be3 {[%clk 0:04:36.2]} 14... Qh5 {[%clk 0:03:24.5]} 15. Qc4 {[%clk
0:04:32.5]} 15... Na5 {[%clk 0:03:06.5]} 16. Qa4 {[%clk 0:04:29.4]} 16... Bxb5
{[%clk 0:02:52]} 17. Nxb5 {[%clk 0:04:28.4]} 17... Rab8 {[%clk 0:02:26]} 18.
Nfd4 {[%clk 0:04:17]} 18... Bd6 {[%clk 0:02:10.6]} 19. Nxd6 {[%clk 0:04:13.9]}
19... cxd6 {[%clk 0:02:09.1]} 20. Bf4 {[%clk 0:03:57.7]} 20... Rxb2 {[%clk
0:01:56.7]} 21. Bxd6 {[%clk 0:03:54.9]} 21... Rd8 {[%clk 0:01:34.6]} 22. Be5
{[%clk 0:03:53.7]} 22... Ng4 {[%clk 0:01:28.1]} 23. Qxa5 {[%clk 0:03:52.1]}
23... Rxd4 {[%clk 0:01:17.9]} 24. Qc3 {[%clk 0:03:31]} 24... Rbb4 {[%clk
0:00:59.1]} 25. Bxd4 {[%clk 0:03:14.8]} 25... Qxh2+ {[%clk 0:00:55.1]} 26. Kf1
{[%clk 0:03:14.4]} 1-0

[Event "Live Chess"]
[Site "Chess.com"]
[Date "2023.05.21"]
[Round "-"]
[White "BillythekidFellowes"]
[Black "jimwad"]
[Result "1-0"]
[WhiteElo "2114"]
[BlackElo "1227"]
[TimeControl "300"]
[EndTime "7:46:34 PDT"]
[Termination "BillythekidFellowes won by checkmate"]

1. e4 {[%clk 0:04:58]} 1... e5 {[%clk 0:04:58.6]} 2. Nf3 {[%clk 0:04:57.2]} 2...
Nc6 {[%clk 0:04:56.3]} 3. Bc4 {[%clk 0:04:56.7]} 3... Bc5 {[%clk 0:04:54.9]} 4.
d4 {[%clk 0:04:54]} 4... exd4 {[%clk 0:04:53.5]} 5. Ng5 {[%clk 0:04:52.8]} 5...
Nh6 {[%clk 0:04:47.5]} 6. Nxf7 {[%clk 0:04:48.4]} 6... Nxf7 {[%clk 0:04:46.1]}
7. Bxf7+ {[%clk 0:04:44.1]} 7... Kf8 {[%clk 0:04:44.9]} 8. Bb3 {[%clk
0:04:40.5]} 8... Qf6 {[%clk 0:04:42.7]} 9. h4 {[%clk 0:04:38.6]} 9... d3 {[%clk
0:04:37.2]} 10. O-O {[%clk 0:04:31.5]} 10... dxc2 {[%clk 0:04:25.1]} 11. Qd5
{[%clk 0:04:28]} 11... Bd6 {[%clk 0:04:13.8]} 12. Bg5 {[%clk 0:04:26.2]} 12...
Qe6 {[%clk 0:04:07]} 13. Qd3 {[%clk 0:04:20]} 13... Qe5 {[%clk 0:03:54.1]} 14.
Qf3+ {[%clk 0:04:09.5]} 14... Ke8 {[%clk 0:03:37.9]} 15. Qf7# {[%clk 0:04:07.4]}
1-0

[Event "Live Chess"]
[Site "Chess.com"]
[Date "2023.05.21"]
[Round "-"]
[White "Ed_Knox"]
[Black "defenderalist"]
[Result "1-0"]
[WhiteElo "1477"]
[BlackElo "1629"]
[TimeControl "300"]
[EndTime "7:46:35 PDT"]
[Termination "Ed_Knox won by resignation"]

1. d4 {[%clk 0:04:56.4]} 1... Nf6 {[%clk 0:04:58.8]} 2. Bf4 {[%clk 0:04:53.2]}
2... e6 {[%clk 0:04:58.3]} 3. e3 {[%clk 0:04:52.5]} 3... d5 {[%clk 0:04:57.8]}
4. Nf3 {[%clk 0:04:51.8]} 4... c5 {[%clk 0:04:56.8]} 5. Nbd2 {[%clk 0:04:47.9]}
5... Nc6 {[%clk 0:04:56]} 6. c3 {[%clk 0:04:46.1]} 6... Be7 {[%clk 0:04:54]} 7.
h3 {[%clk 0:04:43.9]} 7... h6 {[%clk 0:04:52.8]} 8. Bd3 {[%clk 0:04:42.6]} 8...
c4 {[%clk 0:04:51.7]} 9. Bc2 {[%clk 0:04:32.9]} 9... O-O {[%clk 0:04:50.7]} 10.
a4 {[%clk 0:04:30]} 10... Bd6 {[%clk 0:04:49.6]} 11. Bxd6 {[%clk 0:04:26.5]}
11... Qxd6 {[%clk 0:04:48.6]} 12. O-O {[%clk 0:04:25.6]} 12... Nh7 {[%clk
0:04:44.4]} 13. Qb1 {[%clk 0:04:24.1]} 13... Ng5 {[%clk 0:04:36.8]} 14. Nxg5
{[%clk 0:04:22.3]} 14... hxg5 {[%clk 0:04:35.8]} 15. Bh7+ {[%clk 0:04:18.7]}
15... Kh8 {[%clk 0:04:29.4]} 16. Bc2 {[%clk 0:04:16.8]} 16... f5 {[%clk
0:04:27.4]} 17. b4 {[%clk 0:04:04.8]} 17... g6 {[%clk 0:04:18.8]} 18. g4 {[%clk
0:03:55.6]} 18... fxg4 {[%clk 0:04:12.6]} 19. hxg4 {[%clk 0:03:49.7]} 19... Kg7
{[%clk 0:04:09.7]} 20. Bxg6 {[%clk 0:03:47.5]} 20... Ne7 {[%clk 0:04:07.6]} 21.
Bh5 {[%clk 0:03:46]} 21... Ng8 {[%clk 0:03:56.5]} 22. Qg6+ {[%clk 0:03:40.2]}
22... Kh8 {[%clk 0:03:55.4]} 23. Qxg5 {[%clk 0:03:24.3]} 23... e5 {[%clk
0:03:42.4]} 24. Qxe5+ {[%clk 0:03:17.1]} 24... Qxe5 {[%clk 0:03:41.4]} 25. dxe5
{[%clk 0:03:15.8]} 25... Nh6 {[%clk 0:03:35.5]} 26. f3 {[%clk 0:03:08.3]} 26...
Be6 {[%clk 0:03:34.5]} 27. Kg2 {[%clk 0:03:03.9]} 27... Rg8 {[%clk 0:03:30.6]}
28. Rh1 {[%clk 0:02:52]} 28... Nf5 {[%clk 0:03:24.1]} 29. Bf7+ {[%clk
0:02:42.6]} 29... Kg7 {[%clk 0:03:18.5]} 30. Bxe6 {[%clk 0:02:41.5]} 30... Nxe3+
{[%clk 0:03:16.7]} 31. Kg3 {[%clk 0:02:30.7]} 31... Rge8 {[%clk 0:03:09.5]} 32.
Bd7 {[%clk 0:01:57]} 32... Rxe5 {[%clk 0:03:07.1]} 33. Kf4 {[%clk 0:01:49.5]}
33... Re7 {[%clk 0:03:02.6]} 34. Bf5 {[%clk 0:01:45.4]} 34... Ng2+ {[%clk
0:02:42.5]} 35. Kg3 {[%clk 0:01:41.3]} 35... Ne3 {[%clk 0:02:40.9]} 36. Rh7+
{[%clk 0:01:39.3]} 36... Kf6 {[%clk 0:02:40.2]} 37. Rxe7 {[%clk 0:01:33.8]}
37... Kxe7 {[%clk 0:02:40.1]} 38. Rh1 {[%clk 0:01:25.2]} 38... Nxf5+ {[%clk
0:02:38.3]} 39. gxf5 {[%clk 0:01:24]} 39... Kf6 {[%clk 0:02:37]} 40. Kf4 {[%clk
0:01:22.8]} 40... Rg8 {[%clk 0:02:28.4]} 41. Nf1 {[%clk 0:01:12]} 41... Rg7
{[%clk 0:02:23.1]} 42. Ne3 {[%clk 0:01:10.5]} 42... Rd7 {[%clk 0:02:13.5]} 43.
Rh6+ {[%clk 0:01:00]} 43... Kg7 {[%clk 0:02:12.7]} 44. Re6 {[%clk 0:00:55]}
44... d4 {[%clk 0:02:11.4]} 45. cxd4 {[%clk 0:00:52.6]} 45... Rxd4+ {[%clk
0:02:10]} 46. Re4 {[%clk 0:00:48.4]} 46... Rxe4+ {[%clk 0:02:01.8]} 47. Kxe4
{[%clk 0:00:47.4]} 47... Kf6 {[%clk 0:02:00.2]} 48. Nxc4 {[%clk 0:00:44.3]}
48... a6 {[%clk 0:01:57.4]} 49. Nd6 {[%clk 0:00:43.1]} 49... b5 {[%clk
0:01:55.6]} 50. axb5 {[%clk 0:00:40]} 50... axb5 {[%clk 0:01:55]} 51. Nxb5
{[%clk 0:00:39.3]} 51... Ke7 {[%clk 0:01:53.6]} 52. Ke5 {[%clk 0:00:36.7]} 52...
Kd7 {[%clk 0:01:52.1]} 53. Kf6 {[%clk 0:00:35.1]} 53... Kc6 {[%clk 0:01:51.4]}
54. Nd4+ {[%clk 0:00:33.7]} 54... Kd5 {[%clk 0:01:50.8]} 55. Kg7 {[%clk
0:00:31.2]} 55... Kxd4 {[%clk 0:01:50]} 56. f6 {[%clk 0:00:30.7]} 56... Kc4
{[%clk 0:01:49.3]} 57. f7 {[%clk 0:00:30.2]} 57... Kxb4 {[%clk 0:01:49]} 58.
f8=Q+ {[%clk 0:00:28.9]} 58... Kc3 {[%clk 0:01:48.9]} 59. Qd6 {[%clk 0:00:27.6]}
59... Kc4 {[%clk 0:01:48]} 60. Kf6 {[%clk 0:00:26.1]} 60... Kc3 {[%clk
0:01:47.8]} 61. Ke5 {[%clk 0:00:25.6]} 61... Kc4 {[%clk 0:01:47.7]} 62. Qd5+
{[%clk 0:00:23.9]} 62... Kc3 {[%clk 0:01:46.8]} 63. Qd4+ {[%clk 0:00:23.2]}
63... Kc2 {[%clk 0:01:46]} 64. Ke4 {[%clk 0:00:22.3]} 64... Kc1 {[%clk
0:01:43.8]} 65. Qf2 {[%clk 0:00:21.7]} 65... Kd1 {[%clk 0:01:43.1]} 66. Kd3
{[%clk 0:00:20.6]} 1-0